[Event "African Online-ch U20-Open 2021"]
[Site "Online"]
[Date "2021.02.01"]
[Round "6.15"]
[White "Karania, Hardiv"]
[Black "Shah, Darshan Samir"]
[Result "0-1"]
[ECO "D02"]
[WhiteElo "1317"]
[BlackElo "1502"]
[Annotator "NA RC"]
[PlyCount "64"]
[EventDate "2021.02.01"]
[EventType "swiss"]
[EventCountry "NET"]
[SourceTitle "playchess.com"]
[Source "ChessBase"]
[SourceQuality "1"]
[TimeControl "1500+10"]

1. d4 {[%emt 0:00:00]} d5 {[%emt 0:00:08]} 2. Bf4 {[%emt 0:00:07]} Nf6 {[%emt 0:00:08]} 3. e3 {[%emt 0:00:09]} c5 {[%emt 0:00:08]} 4. c3 {[%emt 0:00:14]} e6 {[%emt 0:00:07]} 5. Nd2 {[%emt 0:00:05]} Nc6 {[%emt 0:00:06]} 6. Ngf3 {[%emt 0:00:03]} Bd6 {[%emt 0:00:08]} 7. Bd3 {[%emt 0:00:03]} Be7 {[%emt 0:00:38]} 8. O-O {[%emt 0:00:08]} c4 {[%emt 0:00:11]} 9. Bc2 {[%emt 0:00:07]} Nh5 {[%emt 0:00:20]} 10. Be5 {[%emt 0:00:29]} f6 {[%emt 0:00:25]} 11. Bg3 {[%emt 0:00:28]} Nxg3 {[%emt 0:00:30]} 12. fxg3 {[%emt 0:00:04]} O-O {[%emt 0:00:29]} 13. b3 {[%emt 0:00:10]} b5 {[%emt 0:00:12]} 14. b4 {[%emt 0:00:53]} a5 {[%emt 0:01:34]} 15. a3 {[%emt 0:00:33]} Qb6 {[%emt 0:00:26]} 16. Nh4 {[%emt 0:01:02]} f5 {[%emt 0:01:51]} 17. Qe2 {[%emt 0:04:21]} axb4 {[%emt 0:08:21]} 18. axb4 {[%emt 0:00:09]} Rxa1 {[%emt 0:00:07]} 19. Rxa1 {[%emt 0:00:04]} Bxb4 {[%emt 0:00:09]} 20. cxb4 {[%emt 0:02:05]} Nxd4 {[%emt 0:00:08]} 21. exd4 {[%emt 0:03:16]} Qxd4+ {[%emt 0:00:07]} 22. Qf2 {[%emt 0:01:38]} Qxa1+ {[%emt 0:00:06]} 23. Qf1 {[%emt 0:00:03]} Qc3 {[%emt 0:01:05]} 24. Qc1 {[%emt 0:00:27]} d4 {[%emt 0:01:54]} 25. Qd1 {[%emt 0:01:15]} d3 {[%emt 0:01:48]} 26. Bb1 {[%emt 0:00:03]} e5 {[%emt 0:00:27]} 27. Nf1 {[%emt 0:05:40]} e4 {[%emt 0:00:13]} 28. Ne3 {[%emt 0:00:08]} Qxb4 {[%emt 0:00:17]} 29. Nd5 {[%emt 0:00:30]} Qc5+ {[%emt 0:00:09]} 30. Ne3 {[%emt 0:00:24]} Qxe3+ {[%emt 0:00:04]} 31. Kf1 {[%emt 0:00:05]} g5 {[%emt 0:00:16]} 32. Nxf5 {[%emt 0:00:12]} Bxf5 {[%emt 0:00:08]} 0-1

[Event "African Online-ch U20-Open 2021"]
[Site "Online"]
[Date "2021.02.01"]
[Round "6.16"]
[White "Soojay, Jorah"]
[Black "Palmer, Reegan"]
[Result "0-1"]
[ECO "C55"]
[WhiteElo "1478"]
[BlackElo "1325"]
[Annotator "NA RC"]
[PlyCount "66"]
[EventDate "2021.02.01"]
[EventType "swiss"]
[EventCountry "NET"]
[SourceTitle "playchess.com"]
[Source "ChessBase"]
[SourceQuality "1"]
[TimeControl "1500+10"]

1. e4 {[%emt 0:00:00]} e5 {[%emt 0:00:11]} 2. Nf3 {[%emt 0:00:04]} Nc6 {[%emt 0:00:02]} 3. Bc4 {[%emt 0:00:06]} Nf6 {[%emt 0:00:05]} 4. d3 {[%emt 0:00:02]} d6 {[%emt 0:00:03]} 5. Bg5 {[%emt 0:00:04]} Bg4 {[%emt 0:00:03]} 6. h3 {[%emt 0:00:06]} Bh5 {[%emt 0:00:02]} 7. c3 {[%emt 0:00:11]} Be7 {[%emt 0:00:03]} 8. Nbd2 {[%emt 0:00:09]} h6 {[%emt 0:00:07]} 9. Bh4 {[%emt 0:00:07]} Nd7 {[%emt 0:00:41]} 10. Bxe7 {[%emt 0:00:16]} Qxe7 {[%emt 0:00:02]} 11. Qc2 {[%emt 0:00:39]} Nb6 {[%emt 0:01:49]} 12. Bb5 {[%emt 0:00:45]} O-O {[%emt 0:00:13]} 13. g4 {[%emt 0:00:19]} Bg6 {[%emt 0:00:04]} 14. O-O-O {[%emt 0:00:11]} d5 {[%emt 0:00:36]} 15. Rdg1 {[%emt 0:00:35]} dxe4 {[%emt 0:00:17]} 16. Nxe4 {[%emt 0:00:16]} Bxe4 {[%emt 0:01:15]} 17. dxe4 {[%emt 0:00:06]} Qf6 {[%emt 0:00:37]} 18. Be2 {[%emt 0:00:16]} Nd8 {[%emt 0:01:11]} 19. g5 {[%emt 0:00:07]} Qf4+ {[%emt 0:00:57]} 20. Kb1 {[%emt 0:00:04]} h5 {[%emt 0:01:19]} 21. Rg3 {[%emt 0:02:25]} Ne6 {[%emt 0:00:56]} 22. Bd1 {[%emt 0:01:43]} Nc5 {[%emt 0:01:35]} 23. Nh2 {[%emt 0:02:53]} Nxe4 {[%emt 0:01:28]} 24. Re3 {[%emt 0:01:18]} Nc4 {[%emt 0:01:49]} 25. Rxe4 {[%emt 0:03:44]} Nd2+ {[%emt 0:00:05]} 26. Ka1 {[%emt 0:00:05]} Nxe4 {[%emt 0:00:04]} 27. Bxh5 {[%emt 0:00:06]} g6 {[%emt 0:04:44]} 28. Bxg6 {[%emt 0:01:35]} fxg6 {[%emt 0:00:31]} 29. f3 {[%emt 0:00:04]} Rad8 {[%emt 0:01:27]} 30. fxe4 {[%emt 0:00:13]} Rd2 {[%emt 0:00:17]} 31. Qb3+ {[%emt 0:00:20]} Kg7 {[%emt 0:00:19]} 32. Qxb7 {[%emt 0:01:08]} Rxh2 {[%emt 0:00:18]} 33. Qxc7+ {[%emt 0:00:10]} Rf7 {[%emt 0:02:13]} 0-1

[Event "African Online-ch U20-Open 2021"]
[Site "Online"]
[Date "2021.02.01"]
[Round "6.17"]
[White "Masaiti, Gideon"]
[Black "Potgieter, Edward"]
[Result "0-1"]
[ECO "C50"]
[WhiteElo "1442"]
[BlackElo "1229"]
[Annotator "NA RC"]
[PlyCount "192"]
[EventDate "2021.02.01"]
[EventType "swiss"]
[EventCountry "NET"]
[SourceTitle "playchess.com"]
[Source "ChessBase"]
[SourceQuality "1"]
[TimeControl "1500+10"]

1. e4 {[%emt 0:00:00]} e5 {[%emt 0:00:03]} 2. Nf3 {[%emt 0:00:04]} Nc6 {[%emt 0:00:01]} 3. Bc4 {[%emt 0:00:04]} Bc5 {[%emt 0:00:02]} 4. d4 {[%emt 0:00:03]} Bxd4 {[%emt 0:00:06]} 5. Ng5 {[%emt 0:00:09]} Nh6 {[%emt 0:00:07]} 6. Qh5 {[%emt 0:00:10]} Qf6 {[%emt 0:02:04]} 7. O-O {[%emt 0:00:13]} O-O {[%emt 0:03:14]} 8. c3 {[%emt 0:00:39]} Bb6 {[%emt 0:00:18]} 9. Be3 {[%emt 0:00:07]} Qg6 {[%emt 0:00:59]} 10. Qxg6 {[%emt 0:00:49]} hxg6 {[%emt 0:00:05]} 11. Bxb6 {[%emt 0:00:05]} axb6 {[%emt 0:00:03]} 12. f4 {[%emt 0:00:06]} Na5 {[%emt 0:01:56]} 13. Nd2 {[%emt 0:00:28]} Nxc4 {[%emt 0:00:40]} 14. Nxc4 {[%emt 0:00:08]} exf4 {[%emt 0:00:53]} 15. Rxf4 {[%emt 0:00:40]} d6 {[%emt 0:00:11]} 16. Rf2 {[%emt 0:00:24]} f5 {[%emt 0:00:46]} 17. e5 {[%emt 0:01:40]} Ng4 {[%emt 0:00:29]} 18. Re2 {[%emt 0:01:57]} dxe5 {[%emt 0:01:50]} 19. Nxe5 {[%emt 0:00:10]} Re8 {[%emt 0:00:57]} 20. Rd1 {[%emt 0:00:56]} Nxe5 {[%emt 0:01:43]} 21. Rxe5 {[%emt 0:00:06]} Bd7 {[%emt 0:03:31]} 22. Rxe8+ {[%emt 0:00:06]} Bxe8 {[%emt 0:00:06]} 23. Re1 {[%emt 0:00:07]} Bd7 {[%emt 0:03:45]} 24. Re7 {[%emt 0:00:22]} Rd8 {[%emt 0:00:08]} 25. Kf2 {[%emt 0:01:41]} c5 {[%emt 0:02:10]} 26. Ke3 {[%emt 0:03:25]} Re8 {[%emt 0:00:48]} 27. Rxe8+ {[%emt 0:00:04]} Bxe8 {[%emt 0:00:02]} 28. Kf4 {[%emt 0:00:02]} Bf7 {[%emt 0:01:37]} 29. a3 {[%emt 0:00:05]} Kf8 {[%emt 0:00:32]} 30. Ke5 {[%emt 0:00:05]} Ke7 {[%emt 0:00:15]} 31. g3 {[%emt 0:00:06]} Bb3 {[%emt 0:00:29]} 32. Nf3 {[%emt 0:00:05]} Be6 {[%emt 0:00:10]} 33. Nd2 {[%emt 0:00:04]} Bg8 {[%emt 0:00:09]} 34. b4 {[%emt 0:00:04]} Kd7 {[%emt 0:00:10]} 35. h4 {[%emt 0:00:23]} Kc7 {[%emt 0:00:13]} 36. c4 {[%emt 0:00:08]} Kd7 {[%emt 0:00:13]} 37. bxc5 {[%emt 0:00:06]} bxc5 {[%emt 0:00:03]} 38. Nb3 {[%emt 0:00:07]} b6 {[%emt 0:00:03]} 39. Nd2 {[%emt 0:00:04]} Ke7 {[%emt 0:00:15]} 40. a4 {[%emt 0:00:07]} Kd7 {[%emt 0:00:04]} 41. Kf4 {[%emt 0:00:09]} Kd6 {[%emt 0:00:07]} 42. Ke3 {[%emt 0:00:23]} Bf7 {[%emt 0:00:11]} 43. Kd3 {[%emt 0:00:08]} Be8 {[%emt 0:00:04]} 44. Nf3 {[%emt 0:00:15]} Bxa4 {[%emt 0:00:12]} 45. Ng5 {[%emt 0:00:11]} Ke7 {[%emt 0:00:11]} 46. Nh3 {[%emt 0:00:49]} Kf6 {[%emt 0:00:27]} 47. Nf4 {[%emt 0:00:05]} Bc6 {[%emt 0:00:05]} 48. Ke3 {[%emt 0:00:20]} Be4 {[%emt 0:00:08]} 49. Ne2 {[%emt 0:00:12]} g5 {[%emt 0:00:19]} 50. Nc3 {[%emt 0:00:17]} Bc6 {[%emt 0:00:12]} 51. h5 {[%emt 0:00:25]} Kf7 {[%emt 0:00:11]} 52. Nd1 {[%emt 0:02:07]} Kf6 {[%emt 0:00:08]} 53. Nf2 {[%emt 0:00:07]} Ke6 {[%emt 0:00:10]} 54. Nh3 {[%emt 0:01:26]} Kf6 {[%emt 0:00:08]} 55. Kd3 {[%emt 0:00:18]} Be8 {[%emt 0:00:04]} 56. g4 {[%emt 0:02:25]} fxg4 {[%emt 0:00:13]} 57. Nf2 {[%emt 0:00:06]} Bxh5 {[%emt 0:00:11]} 58. Ke3 {[%emt 0:00:04]} Kf5 {[%emt 0:00:15]} 59. Ne4 {[%emt 0:00:07]} Be8 {[%emt 0:00:09]} 60. Nd6+ {[%emt 0:00:05]} Ke6 {[%emt 0:00:07]} 61. Nxe8 {[%emt 0:00:03]} g3 {[%emt 0:00:06]} 62. Nxg7+ {[%emt 0:00:14]} Ke5 {[%emt 0:00:02]} 63. Kf3 {[%emt 0:02:03]} Kd4 {[%emt 0:00:04]} 64. Ne6+ {[%emt 0:00:10]} Kxc4 {[%emt 0:00:11]} 65. Nxg5 {[%emt 0:00:04]} b5 {[%emt 0:00:05]} 66. Ke2 {[%emt 0:00:27]} g2 {[%emt 0:00:16]} 67. Nf3 {[%emt 0:00:07]} b4 {[%emt 0:00:18]} 68. Kd2 {[%emt 0:00:04]} Kb3 {[%emt 0:00:09]} 69. Ng1 {[%emt 0:01:46]} Ka2 {[%emt 0:00:18]} 70. Ne2 {[%emt 0:00:05]} b3 {[%emt 0:00:12]} 71. Nc1+ {[%emt 0:00:10]} Ka3 {[%emt 0:00:08]} 72. Ne2 {[%emt 0:00:12]} b2 {[%emt 0:00:09]} 73. Kc2 {[%emt 0:00:51]} g1=Q {[%emt 0:00:15]} 74. Nxg1 {[%emt 0:00:18]} Ka2 {[%emt 0:00:02]} 75. Ne2 {[%emt 0:00:06]} b1=Q+ {[%emt 0:00:04]} 76. Kd2 {[%emt 0:00:04]} Qb4+ {[%emt 0:00:03]} 77. Kc2 {[%emt 0:00:04]} Qc4+ {[%emt 0:00:03]} 78. Kd1 {[%emt 0:00:03]} Qd3+ {[%emt 0:00:06]} 79. Ke1 {[%emt 0:00:04]} Qe3 {[%emt 0:00:08]} 80. Kd1 {[%emt 0:00:04]} c4 {[%emt 0:00:15]} 81. Nc1+ {[%emt 0:00:05]} Ka3 {[%emt 0:00:09]} 82. Kc2 {[%emt 0:00:06]} Qe8 {[%emt 0:00:15]} 83. Kc3 {[%emt 0:00:34]} Qe3+ {[%emt 0:00:09]} 84. Kc2 {[%emt 0:00:04]} Qb6 {[%emt 0:00:03]} 85. Ne2 {[%emt 0:00:36]} Qb2+ {[%emt 0:00:06]} 86. Kd1 {[%emt 0:00:02]} Qxe2+ {[%emt 0:00:10]} 87. Kxe2 {[%emt 0:00:04]} Kb2 {[%emt 0:00:02]} 88. Kd2 {[%emt 0:00:03]} c3+ {[%emt 0:00:01]} 89. Kd1 {[%emt 0:00:03]} c2+ {[%emt 0:00:01]} 90. Kd2 {[%emt 0:00:03]} c1=Q+ {[%emt 0:00:02]} 91. Ke2 {[%emt 0:00:03]} Qc8 {[%emt 0:00:03]} 92. Kd1 {[%emt 0:00:03]} Qc2+ {[%emt 0:00:04]} 93. Ke1 {[%emt 0:00:02]} Qh2 {[%emt 0:00:03]} 94. Kd1 {[%emt 0:00:03]} Kc3 {[%emt 0:00:02]} 95. Ke1 {[%emt 0:00:03]} Qg2 {[%emt 0:00:02]} 96. Kd1 {[%emt 0:00:03]} Qd2# {[%emt 0:00:02]} 0-1

[Event "African Online-ch U20-Open 2021"]
[Site "Online"]
[Date "2021.02.01"]
[Round "6.19"]
[White "Meise, Keagen"]
[Black "Dutt Dakshesh"]
[Result "0-1"]
[ECO "D55"]
[WhiteElo "1200"]
[BlackElo "1549"]
[Annotator "NA RC"]
[PlyCount "128"]
[EventDate "2021.02.01"]
[EventType "swiss"]
[EventCountry "NET"]
[SourceTitle "playchess.com"]
[Source "ChessBase"]
[SourceQuality "1"]
[TimeControl "1500+10"]

1. d4 {[%emt 0:00:00]} d5 {[%emt 0:00:09]} 2. c4 {[%emt 0:00:05]} e6 {[%emt 0:00:05]} 3. Nc3 {[%emt 0:00:02]} Nf6 {[%emt 0:00:03]} 4. Bg5 {[%emt 0:00:03]} Be7 {[%emt 0:00:09]} 5. e3 {[%emt 0:00:03]} h6 {[%emt 0:00:24]} 6. Bf4 {[%emt 0:00:04]} O-O {[%emt 0:00:19]} 7. Nf3 {[%emt 0:00:04]} c5 {[%emt 0:00:37]} 8. Be2 {[%emt 0:01:38]} Nc6 {[%emt 0:00:55]} 9. dxc5 {[%emt 0:00:15]} Bxc5 {[%emt 0:00:17]} 10. O-O {[%emt 0:00:09]} Re8 {[%emt 0:01:14]} 11. Nb5 {[%emt 0:01:11]} e5 {[%emt 0:01:46]} 12. Bg3 {[%emt 0:00:07]} a6 {[%emt 0:00:13]} 13. Nc3 {[%emt 0:00:30]} dxc4 {[%emt 0:00:52]} 14. Qxd8 {[%emt 0:00:18]} Rxd8 {[%emt 0:00:30]} 15. Nxe5 {[%emt 0:00:48]} Nxe5 {[%emt 0:00:19]} 16. Bxe5 {[%emt 0:00:04]} b5 {[%emt 0:00:23]} 17. Rfd1 {[%emt 0:00:15]} Be6 {[%emt 0:00:55]} 18. Bf3 {[%emt 0:00:19]} Rxd1+ {[%emt 0:00:52]} 19. Rxd1 {[%emt 0:00:04]} Rf8 {[%emt 0:01:13]} 20. Bb7 {[%emt 0:04:12]} Bc8 {[%emt 0:00:11]} 21. Bxc8 {[%emt 0:00:11]} Rxc8 {[%emt 0:00:04]} 22. Bxf6 {[%emt 0:00:04]} gxf6 {[%emt 0:00:02]} 23. g3 {[%emt 0:00:06]} Kf8 {[%emt 0:00:26]} 24. Kg2 {[%emt 0:00:32]} Ke7 {[%emt 0:02:07]} 25. Nd5+ {[%emt 0:00:22]} Ke6 {[%emt 0:01:01]} 26. Nf4+ {[%emt 0:00:26]} Ke7 {[%emt 0:00:05]} 27. Kf3 {[%emt 0:00:13]} Rd8 {[%emt 0:00:13]} 28. Nd5+ {[%emt 0:01:18]} Ke6 {[%emt 0:00:29]} 29. Nc7+ {[%emt 0:01:50]} Ke7 {[%emt 0:00:28]} 30. Rxd8 {[%emt 0:00:02]} Kxd8 {[%emt 0:00:02]} 31. Nxa6 {[%emt 0:00:02]} Be7 {[%emt 0:00:29]} 32. a3 {[%emt 0:00:12]} Kc8 {[%emt 0:00:07]} 33. Nb4 {[%emt 0:00:02]} Kb7 {[%emt 0:00:23]} 34. Nd5 {[%emt 0:00:10]} Bd8 {[%emt 0:00:06]} 35. Kf4 {[%emt 0:00:27]} Kc6 {[%emt 0:00:10]} 36. Nc3 {[%emt 0:00:51]} Ba5 {[%emt 0:00:07]} 37. Ne4 {[%emt 0:00:02]} Bd8 {[%emt 0:00:07]} 38. Kf5 {[%emt 0:00:09]} Kb6 {[%emt 0:00:09]} 39. Nxf6 {[%emt 0:01:02]} Bxf6 {[%emt 0:00:07]} 40. Kxf6 {[%emt 0:00:01]} Ka5 {[%emt 0:00:01]} 41. Ke5 {[%emt 0:00:33]} Ka4 {[%emt 0:00:04]} 42. Kd4 {[%emt 0:00:18]} Kb3 {[%emt 0:00:04]} 43. Kc5 {[%emt 0:00:04]} Kxb2 {[%emt 0:00:02]} 44. Kxb5 {[%emt 0:00:01]} c3 {[%emt 0:00:03]} 45. a4 {[%emt 0:00:02]} c2 {[%emt 0:00:01]} 46. a5 {[%emt 0:00:03]} c1=Q {[%emt 0:00:03]} 47. a6 {[%emt 0:00:02]} Qc8 {[%emt 0:00:10]} 48. Kb6 {[%emt 0:00:03]} Qb8+ {[%emt 0:00:08]} 49. Kc6 {[%emt 0:00:05]} Qa7 {[%emt 0:00:02]} 50. Kb5 {[%emt 0:00:02]} Kc3 {[%emt 0:00:02]} 51. h4 {[%emt 0:00:09]} Kd3 {[%emt 0:00:12]} 52. g4 {[%emt 0:00:03]} Ke4 {[%emt 0:00:02]} 53. f4 {[%emt 0:00:08]} Kxe3 {[%emt 0:00:15]} 54. g5 {[%emt 0:00:02]} hxg5 {[%emt 0:00:03]} 55. fxg5 {[%emt 0:00:02]} Kf4 {[%emt 0:00:03]} 56. Kc6 {[%emt 0:00:21]} Qxa6+ {[%emt 0:00:07]} 57. Kd7 {[%emt 0:00:07]} Qg6 {[%emt 0:00:05]} 58. Ke7 {[%emt 0:00:05]} Kg4 {[%emt 0:00:03]} 59. h5 {[%emt 0:00:02]} Kxh5 {[%emt 0:00:05]} 60. Kf8 {[%emt 0:00:03]} Kxg5 {[%emt 0:00:27]} 61. Ke7 {[%emt 0:00:03]} f5 {[%emt 0:00:06]} 62. Kd7 {[%emt 0:00:01]} f4 {[%emt 0:00:02]} 63. Kc7 {[%emt 0:00:03]} f3 {[%emt 0:00:02]} 64. Kb7 {[%emt 0:00:03]} f2 {[%emt 0:00:02]} 0-1

[Event "African Online-ch U20-Open 2021"]
[Site "Online"]
[Date "2021.02.01"]
[Round "7.4"]
[White "Celso Andre Manjate"]
[Black "Junior, Domingos"]
[Result "0-1"]
[ECO "B13"]
[WhiteElo "1721"]
[BlackElo "1894"]
[Annotator "NA RC"]
[PlyCount "66"]
[EventDate "2021.02.01"]
[EventType "swiss"]
[EventCountry "NET"]
[SourceTitle "playchess.com"]
[Source "ChessBase"]
[SourceQuality "1"]
[TimeControl "1500+10"]

1. e4 {[%emt 0:00:00]} c6 {[%emt 0:00:23]} 2. d4 {[%emt 0:00:04]} d5 {[%emt 0:00:18]} 3. exd5 {[%emt 0:00:03]} cxd5 {[%emt 0:00:03]} 4. Bd3 {[%emt 0:00:02]} Nc6 {[%emt 0:00:05]} 5. c3 {[%emt 0:00:04]} Qc7 {[%emt 0:00:12]} 6. Nf3 {[%emt 0:00:03]} Bg4 {[%emt 0:00:05]} 7. Be3 {[%emt 0:00:05] B13: Caro-Kann: Exchange Variation and Panov-Botvinnik Attack.} Nf6 {[%emt 0:00:11]} 8. Nbd2 {[%emt 0:00:03]} e6 {[%emt 0:00:05]} 9. O-O {[%emt 0:00:04]} Bd6 {[%emt 0:00:08]} 10. h3 {[%emt 0:00:03]} Bh5 {[%emt 0:00:03]} 11. a3 {[%emt 0:00:03]} O-O {[%emt 0:00:26] [#]} 12. Qc2 $146 {[%emt 0:00:02]} ({Predecessor:} 12. Re1 Rab8 13. Qb1 Bg6 14. Bxg6 hxg6 15. a4 a6 16. Qd3 Rfc8 17. Rec1 Na5 18. b3 {½-½ (47) Korley,K (2447)-Krush,I (2424) New York 2019}) 12... Bg6 {[%emt 0:00:16]} 13. Bg5 {[%emt 0:00:09]} Nh5 {[%emt 0:01:48]} 14. Rfe1 {[%emt 0:05:33]} Rac8 {[%emt 0:01:30]} 15. Nb3 {[%emt 0:03:23]} Rfe8 {[%emt 0:03:51]} 16. Bxg6 {[%emt 0:01:26]} hxg6 {[%emt 0:00:11]} 17. Nc5 {[%emt 0:02:17]} Bxc5 {[%emt 0:02:00]} 18. dxc5 {[%emt 0:00:04]} e5 {[%emt 0:00:06]} 19. b4 {[%emt 0:00:09]} e4 {[%emt 0:00:09]} 20. Nd2 {[%emt 0:02:20]} f5 {[%emt 0:03:38]} ({Black should play} 20... f6 $15 21. Be3 f5) 21. g4 {[%emt 0:06:48]} Nf4 {[%emt 0:00:47]} 22. Bxf4 {[%emt 0:00:35]} Qxf4 {[%emt 0:00:05]} 23. Re3 {[%emt 0:03:02]} Qg5 {[%emt 0:00:56]} 24. Rae1 {[%emt 0:01:41]} Ne5 {[%emt 0:00:51]} 25. Nf1 {[%emt 0:00:48]} f4 {[%emt 0:00:08]} 26. R3e2 {[%emt 0:00:08]} Nxg4 {[%emt 0:01:33]} 27. hxg4 {[%emt 0:00:03]} Qxg4+ {[%emt 0:00:04]} 28. Ng3 {[%emt 0:00:06]} f3 {[%emt 0:00:17]} 29. Rxe4 {[%emt 0:00:23]} Qh3 {[%emt 0:00:25]} 30. Rxe8+ {[%emt 0:00:03]} Rxe8 {[%emt 0:00:21]} 31. Rxe8+ {[%emt 0:00:04]} Kh7 {[%emt 0:00:11]} 32. Rh8+ {[%emt 0:00:27]} Kxh8 {[%emt 0:00:04]} 33. Qxg6 {[%emt 0:00:05]} Qg2# {[%emt 0:00:05]} 0-1

[Event "African Online-ch U20-Open 2021"]
[Site "Online"]
[Date "2021.02.01"]
[Round "7.7"]
[White "Bidi, Abdeljalil"]
[Black "Lion, Pierre"]
[Result "0-1"]
[ECO "B08"]
[WhiteElo "1750"]
[BlackElo "1586"]
[Annotator "NA RC"]
[PlyCount "168"]
[EventDate "2021.02.01"]
[EventType "swiss"]
[EventCountry "NET"]
[SourceTitle "playchess.com"]
[Source "ChessBase"]
[SourceQuality "1"]
[TimeControl "1500+10"]

1. e4 {[%emt 0:00:00]} g6 {[%emt 0:00:07]} 2. d4 {[%emt 0:00:03]} Bg7 {[%emt 0:00:05]} 3. Nf3 {[%emt 0:00:02]} d6 {[%emt 0:00:07]} 4. Nc3 {[%emt 0:00:03]} a6 {[%emt 0:00:05]} 5. Be3 {[%emt 0:00:06]} b5 {[%emt 0:00:11]} 6. a3 {[%emt 0:00:04]} Nd7 {[%emt 0:00:12]} 7. Be2 {[%emt 0:00:24]} Bb7 {[%emt 0:00:05]} 8. O-O {[%emt 0:00:14]} Ngf6 {[%emt 0:00:26]} 9. d5 {[%emt 0:00:39]} O-O {[%emt 0:00:24]} 10. h3 {[%emt 0:00:10]} c6 {[%emt 0:00:19]} 11. Nh2 {[%emt 0:02:03]} Nb6 {[%emt 0:01:10]} 12. dxc6 {[%emt 0:01:21]} Bxc6 {[%emt 0:00:04]} 13. e5 {[%emt 0:00:05]} Nfd5 {[%emt 0:01:05]} 14. Bxb6 {[%emt 0:00:57]} Nxb6 {[%emt 0:00:04]} 15. exd6 {[%emt 0:00:03]} exd6 {[%emt 0:00:12]} 16. Qd2 {[%emt 0:00:38]} d5 {[%emt 0:01:26]} 17. Bd3 {[%emt 0:03:22]} Nc4 {[%emt 0:00:15]} 18. Bxc4 {[%emt 0:00:08]} dxc4 {[%emt 0:00:04]} 19. Rad1 {[%emt 0:00:40]} Qc7 {[%emt 0:00:28]} 20. Qd6 {[%emt 0:02:53]} Qb7 {[%emt 0:00:32]} 21. Qg3 {[%emt 0:00:39]} Rfe8 {[%emt 0:00:15]} 22. Rfe1 {[%emt 0:00:33]} a5 {[%emt 0:00:46]} 23. Ng4 {[%emt 0:03:02]} b4 {[%emt 0:00:07]} 24. axb4 {[%emt 0:00:17]} axb4 {[%emt 0:00:03]} 25. Nb1 {[%emt 0:00:02]} Bxb2 {[%emt 0:00:07]} 26. Nh6+ {[%emt 0:00:23]} Kf8 {[%emt 0:01:10]} 27. Nd2 {[%emt 0:01:44]} Bg7 {[%emt 0:00:41]} 28. Qd6+ {[%emt 0:00:11]} Re7 {[%emt 0:00:12]} 29. Rxe7 {[%emt 0:00:06]} Qxe7 {[%emt 0:00:01]} 30. Qxc6 {[%emt 0:00:03]} Rd8 {[%emt 0:00:06]} 31. Ng4 {[%emt 0:00:59]} c3 {[%emt 0:00:06]} 32. Ne3 {[%emt 0:00:30]} cxd2 {[%emt 0:00:08]} 33. Kf1 {[%emt 0:00:41]} Bc3 {[%emt 0:00:11]} 34. Ke2 {[%emt 0:01:02]} f5 {[%emt 0:00:12]} 35. g3 {[%emt 0:00:21]} g5 {[%emt 0:00:34]} 36. Qf3 {[%emt 0:00:11]} Qe4 {[%emt 0:00:51]} 37. Qxf5+ {[%emt 0:00:10]} Qxf5 {[%emt 0:00:02]} 38. Nxf5 {[%emt 0:00:01]} Re8+ {[%emt 0:00:02]} 39. Ne3 {[%emt 0:00:02]} Ra8 {[%emt 0:00:12]} 40. Kf3 {[%emt 0:00:52]} Kf7 {[%emt 0:00:19]} 41. Kg4 {[%emt 0:00:30]} Kg6 {[%emt 0:00:04]} 42. Kf3 {[%emt 0:00:34]} h5 {[%emt 0:00:10]} 43. h4 {[%emt 0:00:16]} g4+ {[%emt 0:00:03]} 44. Ke2 {[%emt 0:00:12]} Rd8 {[%emt 0:00:33]} 45. Ng2 {[%emt 0:00:44]} Re8+ {[%emt 0:00:19]} 46. Ne3 {[%emt 0:00:04]} Re4 {[%emt 0:00:19]} 47. Kd3 {[%emt 0:01:10]} Rd4+ {[%emt 0:00:03]} 48. Ke2 {[%emt 0:00:02]} Kf6 {[%emt 0:00:02]} 49. Rf1 {[%emt 0:00:17]} Ke5 {[%emt 0:00:20]} 50. f4+ {[%emt 0:00:14]} gxf3+ {[%emt 0:00:04]} 51. Kxf3 {[%emt 0:00:11]} Re4 {[%emt 0:00:08]} 52. Rd1 {[%emt 0:01:10]} Rd4 {[%emt 0:00:33]} 53. Ke2 {[%emt 0:00:35]} Ke4 {[%emt 0:00:18]} 54. Rf1 {[%emt 0:00:16]} Rd8 {[%emt 0:04:29]} 55. Rf4+ {[%emt 0:01:13]} Ke5 {[%emt 0:00:01]} 56. Nc4+ {[%emt 0:00:17]} Ke6 {[%emt 0:00:25]} 57. Rf1 {[%emt 0:00:06]} Rd4 {[%emt 0:00:08]} 58. Ne3 {[%emt 0:00:06]} Kd7 {[%emt 0:01:04]} 59. Rd1 {[%emt 0:00:26]} Kc6 {[%emt 0:00:21]} 60. Nf5 {[%emt 0:00:18]} Re4+ {[%emt 0:00:04]} 61. Ne3 {[%emt 0:00:01]} Kb5 {[%emt 0:00:04]} 62. Kf3 {[%emt 0:00:19]} Re8 {[%emt 0:00:20]} 63. Rb1 {[%emt 0:00:32]} Ka4 {[%emt 0:00:15]} 64. Kf2 {[%emt 0:00:13]} Ka3 {[%emt 0:00:36]} 65. Nd1 {[%emt 0:00:05]} Ka2 {[%emt 0:00:21]} 66. Nxc3+ {[%emt 0:00:09]} bxc3 {[%emt 0:00:04]} 67. Rd1 {[%emt 0:00:08]} Kb2 {[%emt 0:00:01]} 68. g4 {[%emt 0:00:03]} hxg4 {[%emt 0:00:03]} 69. Kg3 {[%emt 0:00:02]} Kxc2 {[%emt 0:00:01]} 70. Ra1 {[%emt 0:00:05]} d1=Q {[%emt 0:00:04]} 71. Rxd1 {[%emt 0:00:02]} Kxd1 {[%emt 0:00:02]} 72. Kxg4 {[%emt 0:00:02]} Re4+ {[%emt 0:00:01]} 73. Kg3 {[%emt 0:00:03]} Rxh4 {[%emt 0:00:02]} 74. Kxh4 {[%emt 0:00:01]} c2 {[%emt 0:00:01]} 75. Kg5 {[%emt 0:00:02]} c1=Q+ {[%emt 0:00:02]} 76. Kg6 {[%emt 0:00:01]} Qc5 {[%emt 0:00:02]} 77. Kg7 {[%emt 0:00:02]} Qd6 {[%emt 0:00:01]} 78. Kg8 {[%emt 0:00:01]} Qd7 {[%emt 0:00:02]} 79. Kh8 {[%emt 0:00:02]} Ke2 {[%emt 0:00:01]} 80. Kg8 {[%emt 0:00:01]} Kf3 {[%emt 0:00:01]} 81. Kf8 {[%emt 0:00:01]} Kf4 {[%emt 0:00:02]} 82. Kg8 {[%emt 0:00:02]} Kf5 {[%emt 0:00:01]} 83. Kh8 {[%emt 0:00:01]} Kg6 {[%emt 0:00:02]} 84. Kg8 {[%emt 0:00:01]} Qd8# {[%emt 0:00:01]} 0-1